bitfinex-derivatives/quotes_ETHF0:USTF0_20250321
["timestamp","ask_amount","ask_price","bid_price","bid_amount"]
[1742536963363,4.5582,1974.3,1974.2,2.32715]
[1742536963959,5.5716,1974.3,1974.2,2.32715]
[1742536964263,0.65240206,1974.4,1974.3,1.0134]
[1742536964456,1.96460206,1974.4,1974.3,2.3271]
[1742536965261,2.97795206,1974.4,1974.3,2.3271]
[1742536965566,2.97795206,1974.4,1974.3,1.3137]
[1742536965866,2.97795206,1974.4,1974.3,2.3271]
[1742536966170,2.97795206,1974.4,1974.3,1.3137]
[1742536969269,1.01345,1974.2,1974.1,0.06900206]
[1742536969669,1.01345,1974.2,1974.1,0.00760206]
[1742536969970,1.67405,1974.2,1974.1,0.00760206]
[1742536970564,1.01355,1974.0,1973.9,0.0111]
[1742536970770,4.25955,1974.0,1973.9,0.0111]
[1742536971063,4.25955,1974.0,1973.9,1.3988]
[1742536971264,1.0136,1973.9,1973.8,3.2078]
[1742536971467,3.0923,1973.9,1973.8,3.21540206]
[1742536971667,3.0923,1973.9,1973.8,4.61420206]
[1742536972369,3.0923,1973.9,1973.8,5.62785206]
[1742536972569,1.403,1973.9,1973.8,6.32065206]
[1742536972969,2.4166,1973.9,1973.8,6.32065206]
[1742536973572,3.1215,1973.9,1973.8,6.32065206]
[1742536974269,1.7185,1973.9,1973.8,6.32065206]
[1742536974473,0.7049,1973.9,1973.8,6.32065206]
[1742536974872,0.00760206,1974.4,1974.3,1.0134]
[1742536976169,0.00760206,1974.4,1974.3,2.4252]
[1742536976368,2.0962,1974.7,1974.6,1.01324]
[1742536976572,0.7073,1974.7,1974.6,1.01324]
[1742536976976,0.7073,1974.7,1974.6,2.42314]
[1742536977471,3.08079,1974.7,1974.6,1.01324]
[1742536977672,3.08079,1974.7,1974.6,2.42314]
[1742536977868,2.0676,1974.7,1974.6,2.42314]
[1742536978578,2.0676,1974.7,1974.6,43.22314]
[1742536979980,6.32679,1974.7,1974.6,42.2099]
[1742536980279,1.01324,1974.6,1974.5,3.2078]
[1742536980583,2.31394,1974.6,1974.5,3.2078]
[1742536981981,2.31394,1974.6,1974.5,4.22109]
[1742536982178,2.31394,1974.6,1974.5,3.2078]
[1742536982378,1.3007,1974.6,1974.5,3.2078]
[1742536982575,2.31394,1974.6,1974.5,4.5725]
[1742536982880,1.3007,1974.6,1974.3,41.81336]
[1742536983073,1.01335,1974.4,1974.2,1.01342]
[1742536983275,2.0161,1974.3,1974.2,2.31952]
[1742536983475,2.0161,1974.3,1974.2,5.52732]
[1742536983675,2.0161,1974.3,1974.2,46.32732]
[1742536985076,3.0295,1974.3,1974.2,45.3139]
[1742536986386,2.0161,1974.3,1974.2,46.32735]
[1742536987480,3.245,1974.6,1974.5,1.01328]
[1742536988182,4.6069,1974.6,1974.5,2.43638]
[1742536988384,5.62014,1974.6,1974.5,43.23638]
[1742536989177,5.62014,1974.6,1974.5,42.2231]
[1742536989477,5.62014,1974.6,1974.5,42.2845]
[1742536989885,5.62014,1974.6,1974.5,43.29779]
[1742536990077,5.62014,1974.6,1974.5,42.2845]
[1742536990384,5.62014,1974.6,1974.5,43.29779]
[1742536991280,1.3619,1974.6,1974.5,43.29779]
[1742536991585,0.6716,1974.7,1974.6,1.01324]
[1742536991779,0.6716,1974.7,1974.6,2.31614]
[1742536992284,0.6716,1974.7,1974.6,43.11614]
[1742536992481,1.68479,1974.7,1974.6,44.0078]
[1742536992783,6.33559,1974.7,1974.6,44.0078]
[1742536993183,6.33559,1974.7,1974.6,40.8]
[1742536993384,1.01324,1974.6,1974.5,0.0614]
[1742536993584,2.41904,1974.6,1974.5,0.0614]
[1742536995186,1.4058,1974.6,1974.5,1.07469]
[1742536995391,4.92983,1974.7,1974.6,1.01324]
[1742536995580,6.23983,1974.7,1974.6,1.01324]
[1742536996081,6.23983,1974.7,1974.6,2.31334]
[1742536996385,5.2266,1974.7,1974.6,2.31334]
[1742536997877,3.9166,1974.7,1974.6,2.31334]
[1742536998080,0.00760206,1974.8,1974.7,1.01319]
[1742536998284,0.00760206,1974.8,1974.7,2.37419]
[1742536998691,1.02074206,1974.8,1974.7,2.37419]
[1742536998986,1.01324,1974.6,1974.5,3.6045]
[1742536999184,4.25824,1974.6,1974.5,0.3967]
[1742536999585,1.0134,1974.3,1974.2,2.0312]
[1742536999775,1.0134,1974.3,1974.2,42.8312]
[1742537000184,2.4022,1974.3,1974.2,42.8312]
[1742537000685,1.3888,1974.3,1974.2,43.84465]
[1742537000981,2.4022,1974.3,1974.2,42.161]
[1742537001187,3.1085,1974.3,1974.2,42.161]
[1742537001689,3.1085,1974.3,1974.2,43.17445]
[1742537002691,2.0951,1974.3,1974.2,43.17445]
[1742537003286,3.245,1974.4,1974.3,1.0134]
[1742537003589,4.25835,1974.4,1974.3,1.0134]
[1742537003790,1.0134,1974.3,1974.2,41.81341]
[1742537003987,2.4179,1974.3,1974.2,41.81341]
[1742537004193,1.4045,1974.3,1974.2,41.81341]
[1742537004994,2.4179,1974.3,1974.2,40.8]
[1742537005192,2.4179,1974.3,1974.2,41.81345]
[1742537005900,2.4179,1974.3,1974.2,41.82455]
[1742537007392,1.4045,1974.3,1974.2,41.82455]
[1742537008903,2.4179,1974.3,1974.2,41.82455]
[1742537009985,2.4179,1974.3,1974.2,40.8111]
[1742537011190,2.4179,1974.3,1974.2,41.82455]
[1742537012191,2.4179,1974.3,1974.2,40.8111]
[1742537012899,1.4045,1974.3,1974.2,41.82455]
[1742537014104,2.4179,1974.3,1974.2,40.8111]
[1742537014598,2.4179,1974.3,1974.2,41.82455]
[1742537016595,3.0691,1974.3,1974.2,0.0111]
[1742537016800,1.01345,1974.2,1974.1,3.2078]
[1742537016995,5.64445,1974.2,1974.1,3.2078]
[1742537017297,5.64445,1974.2,1974.1,44.0078]
[1742537020011,6.31975,1974.2,1974.1,44.0078]
[1742537022006,6.31975,1974.2,1974.1,40.8]
[1742537022207,6.31975,1974.2,1974.1,42.2125]
[1742537023107,2.0613,1974.2,1974.1,43.226]
[1742537023309,3.245,1974.3,1974.2,1.01341]
[1742537023506,3.245,1974.3,1974.2,3.10101]
[1742537024809,4.5644,1974.3,1974.2,3.10101]
[1742537027212,0.6652,1974.4,1974.3,1.0134]
[1742537027410,6.23355,1974.4,1974.3,2.411]
[1742537028204,0.6652,1974.4,1974.3,2.411]
[1742537028515,2.32325,1974.6,1974.5,1.01329]
[1742537028698,2.32324,1974.6,1974.5,1.01329]
[1742537028899,1.31,1974.6,1974.5,1.01329]
[1742537029101,1.31,1974.6,1974.5,1.67859]
[1742537029309,1.31,1974.6,1974.5,4.88639]
[1742537030504,2.32324,1974.6,1974.5,4.88639]
[1742537032712,1.31,1974.6,1974.5,4.88639]
[1742537035418,2.32324,1974.6,1974.5,3.2078]
[1742537035618,1.01329,1974.5,1974.4,1.392]
[1742537035818,2.35199,1974.5,1974.4,1.392]
[1742537036004,1.01335,1974.4,1974.3,1.01338]
[1742537036208,3.05235,1974.4,1974.3,1.3927]
[1742537036812,3.05235,1974.4,1974.3,2.4061]
[1742537038618,3.05235,1974.4,1974.3,1.3927]
[1742537039317,1.0134,1974.3,1974.2,3.2078]
[1742537039513,3.078,1974.3,1974.2,4.6055]
[1742537040214,3.078,1974.3,1974.2,5.61895]
[1742537040614,2.0646,1974.3,1974.2,5.61895]
[1742537041422,3.078,1974.3,1974.2,5.61895]
[1742537042416,0.7031,1974.3,1974.2,5.61895]
[1742537042621,4.25838,1974.4,1974.3,1.0134]
[1742537042821,0.7062,1974.5,1974.4,1.01335]
[1742537043023,2.37094,1974.7,1974.6,1.01324]
[1742537043222,3.07714,1974.7,1974.6,1.01324]
[1742537043520,3.07713,1974.7,1974.6,1.01324]
[1742537044624,1.01324,1974.6,1974.5,2.30725]
[1742537044825,2.36704,1974.6,1974.5,2.30725]
[1742537045820,3.07914,1974.6,1974.5,2.30725]
[1742537046516,1.3538,1974.6,1974.5,2.30725]
[1742537046718,0.7062,1974.7,1974.6,1.01324]
[1742537046923,0.7062,1974.7,1974.6,5.51524]
[1742537046924,2.0853,1974.7,1974.6,5.51524]
[1742537047132,0.00760206,1974.8,1974.7,1.01319]
[1742537047426,0.00760206,1974.8,1974.7,2.99839]
[1742537051029,0.6723,1975.1,1975.0,1.01304]
[1742537051323,2.0108,1975.1,1975.0,4.22084]
[1742537051712,0.6723,1975.1,1975.0,4.22084]
[1742537051916,2.0108,1975.1,1975.0,4.93024]
[1742537052925,0.6723,1975.1,1975.0,45.73024]
[1742537053323,0.6723,1975.1,1975.0,47.06494]
[1742537053826,1.39440206,1975.2,1975.1,1.01299]
[1742537054025,0.00760206,1975.2,1975.1,2.34769]
[1742537054621,1.39440206,1975.2,1975.1,43.14769]
[1742537055723,0.00760206,1975.2,1975.1,43.14769]
[1742537056722,51.083,1976.0,1975.3,2.53214]
[1742537056927,2.0573,1975.8,1975.7,1.01268]
[1742537057124,2.0573,1975.8,1975.7,2.38698]
[1742537057928,2.0573,1975.8,1975.4,2.53207]
[1742537057929,2.0573,1975.8,1975.4,3.2078]
[1742537058120,1.01277,1975.6,1975.5,1.01277]
[1742537058624,1.69807,1975.6,1975.5,1.01277]
[1742537059426,1.01278,1975.5,1975.4,4.5821]
[1742537059632,2.39758,1975.5,1975.4,3.2078]
[1742537060125,1.01283,1975.4,1975.3,1.01286]
[1742537060329,3.04903,1975.4,1975.3,1.01286]
[1742537061035,2.0362,1975.4,1975.3,1.01286]
[1742537061333,2.0362,1975.4,1975.3,2.31766]
[1742537061936,2.0362,1975.4,1975.3,3.02516]
[1742537062636,2.0362,1975.4,1975.3,2.31766]
[1742537063334,3.04903,1975.4,1975.3,2.31766]
[1742537065538,2.0362,1975.4,1975.3,2.31766]
[1742537067547,3.04903,1975.4,1975.3,2.31766]
[1742537068043,2.0362,1975.4,1975.3,2.31766]
[1742537070046,1.69805,1975.6,1975.5,1.01278]
[1742537070345,2.35633,1975.6,1975.5,1.01278]
[1742537071346,2.35633,1975.6,1975.5,2.31168]
[1742537071739,1.3436,1975.6,1975.5,2.31168]
[1742537072348,2.7477,1975.6,1975.5,2.31168]
[1742537073851,3.76043,1975.6,1975.5,2.31168]
[1742537075458,2.7477,1975.6,1975.5,2.31168]
[1742537075649,3.76043,1975.6,1975.5,2.31168]
[1742537075841,2.7477,1975.6,1975.5,2.31168]
[1742537076154,3.76043,1975.6,1975.5,2.31168]
[1742537077557,2.7477,1975.6,1975.5,2.31168]
[1742537078755,2.0624,1975.6,1975.5,2.31168]
[1742537079760,1.71603,1975.8,1975.7,1.01268]
[1742537079950,2.40233,1975.8,1975.7,4.22048]
[1742537080355,1.3897,1975.8,1975.7,4.22048]
[1742537080549,1.3897,1975.8,1975.7,4.91158]
[1742537080748,0.6863,1975.8,1975.7,4.91158]
[1742537081158,3.05983,1975.8,1975.7,4.91158]
[1742537081651,3.05983,1975.8,1975.7,4.22048]
[1742537082451,2.0472,1975.8,1975.7,4.22048]
[1742537083253,3.05983,1975.8,1975.7,4.22048]
[1742537083855,3.05983,1975.8,1975.7,1.01268]
[1742537085766,1.01268,1975.7,1975.6,2.33169]
[1742537085966,2.43618,1975.7,1975.6,2.33169]
[1742537087057,1.01273,1975.6,1975.5,1.01273]
[1742537087257,1.01278,1975.5,1975.4,2.3704]
[1742537087463,1.01278,1975.5,1975.4,1.0128]
[1742537087659,2.40968,1975.5,1975.4,2.3704]
[1742537088160,1.3969,1975.5,1975.4,2.3704]
[1742537090163,2.40968,1975.5,1975.4,2.3704]
[1742537091666,2.40968,1975.5,1975.4,1.0128]
[1742537092060,2.40968,1975.5,1975.4,2.2978]
[1742537093160,2.40968,1975.5,1975.4,1.0128]
[1742537094167,1.01283,1975.4,1975.3,5.50815]
[1742537094362,3.07743,1975.4,1975.3,5.50815]
[1742537094561,2.0646,1975.4,1975.3,5.50815]
[1742537094757,1.01293,1975.3,1975.2,1.01291]
[1742537094966,3.10143,1975.3,1975.2,1.01291]
[1742537095165,3.10143,1975.3,1975.2,2.30041]
[1742537097474,2.0885,1975.3,1975.2,2.30041]
[1742537099373,3.10138,1975.3,1975.2,2.30041]
[1742537100274,2.0885,1975.3,1975.2,2.30041]
[1742537100571,3.10138,1975.3,1975.2,2.30041]
[1742537101870,3.10138,1975.3,1975.2,1.2875]
[1742537102174,2.0885,1975.3,1975.2,2.30044]
[1742537103074,1.3781,1975.3,1975.2,2.30044]
[1742537103267,1.3781,1975.3,1975.2,2.99344]
[1742537103676,1.3781,1975.3,1975.2,2.30044]
[1742537103874,2.39098,1975.3,1975.2,2.30044]
[1742537104070,1.01294,1975.2,1975.1,45.02075]
[1742537104271,2.97854,1975.2,1975.1,46.41125]
[1742537104471,2.97854,1975.2,1975.1,45.3983]
[1742537106282,2.97854,1975.2,1975.1,46.41129]
[1742537106480,1.3243,1975.2,1975.1,46.41129]
[1742537108279,2.33724,1975.2,1975.1,46.41129]
[1742537108478,1.3243,1975.2,1975.1,46.41129]
[1742537109180,2.33724,1975.2,1975.1,46.41129]
[1742537109476,1.3243,1975.2,1975.1,46.41129]
[1742537113372,1.3243,1975.2,1975.1,43.20349]
[1742537113774,2.33724,1975.2,1975.1,42.1905]
[1742537114085,2.33724,1975.2,1975.1,43.20349]
[1742537114284,1.3968,1975.4,1975.1,42.9005]
[1742537114484,4.6398,1975.4,1975.3,1.01288]
[1742537114683,5.9477,1975.4,1975.3,1.01288]
[1742537115480,6.96053,1975.4,1975.3,1.01288]
[1742537115782,5.9477,1975.4,1975.3,1.01288]
[1742537117284,6.96053,1975.4,1975.3,1.01288]
[1742537117886,1.01288,1975.3,1975.2,1.4048]
[1742537118087,2.42888,1975.3,1975.2,2.41774]
[1742537118485,1.416,1975.3,1975.2,2.41774]
[1742537118685,4.25569,1975.7,1975.4,2.53209]
[1742537118886,2.0807,1975.6,1975.5,2.39728]
[1742537119079,0.6647,1975.6,1975.5,3.04388]
[1742537119286,1.416,1975.7,1975.6,1.01273]
[1742537119493,1.416,1975.7,1975.6,5.60503]
[1742537120583,1.416,1975.7,1975.6,2.39723]
[1742537120784,1.416,1975.7,1975.6,5.60503]
[1742537122792,0.6647,1975.8,1975.7,1.01268]
[1742537122990,1.9515,1975.8,1975.7,2.37388]
[1742537124291,0.00760206,1975.9,1975.8,1.01263]
[1742537124493,0.00760206,1975.9,1975.8,5.58163]
[1742537124791,1.29440206,1975.9,1975.5,3.243]
[1742537125089,1.01268,1975.7,1975.6,2.37388]
[1742537125290,0.7069,1975.8,1975.7,1.01268]
[1742537125486,1.71957,1975.8,1975.7,2.37388]
[1742537125695,1.01268,1975.7,1975.5,6.4508]
[1742537125885,2.42348,1975.7,1975.6,1.2848]
[1742537126691,1.4108,1975.7,1975.6,2.29749]
[1742537131392,3.25060206,1975.9,1975.8,1.01263]
[1742537132199,5.64728206,1975.9,1975.8,2.35323]
[1742537135194,4.63470206,1975.9,1975.7,3.2078]
[1742537135498,2.99173,1975.8,1975.7,4.22048]
[1742537136492,1.9791,1975.8,1975.7,4.22048]
[1742537136889,2.99173,1975.8,1975.7,4.22048]
[1742537138905,2.99173,1975.8,1975.7,3.2078]
[1742537139498,2.99173,1975.8,1975.7,4.22048]
[1742537141006,2.6222,1975.8,1975.7,4.22048]
[1742537141407,2.6222,1975.8,1975.7,5.62998]
[1742537142908,3.63483,1975.8,1975.7,5.62998]
[1742537145711,2.6222,1975.8,1975.7,5.62998]
[1742537147908,3.63483,1975.8,1975.7,5.62998]
[1742537148114,1.0127,1975.7,1975.6,1.01269]
[1742537148415,2.4067,1975.7,1975.6,1.01269]
[1742537148713,2.4067,1975.7,1975.6,2.37189]
[1742537148915,1.01283,1975.4,1975.3,3.2078]
[1742537149212,5.40650361,1975.8,1975.1,42.1592]
[1742537149213,1.01294,1975.2,1975.1,42.1592]
[1742537149518,1.01294,1975.2,1975.1,40.8]
[1742537149915,2.40694,1975.2,1975.1,40.8]
[1742537151407,1.01304,1975.0,1974.9,0.00760206]
[1742537151610,4.25604,1975.0,1974.9,0.00760206]
[1742537152009,4.92794,1975.0,1974.9,0.00760206]
[1742537154314,1.01309,1974.9,1974.8,40.8]
[1742537154528,1.01329,1974.5,1974.4,4.5662]
[1742537154920,1.01329,1974.5,1974.4,45.3662]
[1742537155229,3.06879,1974.5,1974.4,44.0078]
[1742537155423,1.01335,1974.4,1974.3,3.2078]
[1742537155624,5.61315,1974.4,1974.3,0.00760206]
[1742537155928,5.61315,1974.4,1974.3,40.80760206]
[1742537157626,6.31615,1974.4,1974.3,40.80760206]
[1742537160920,3.946,1974.4,1974.3,40.80760206]
[1742537161125,3.946,1974.4,1974.3,43.14510206]
[1742537161626,0.703,1974.4,1974.3,43.14510206]
[1742537161938,3.244,1974.5,1974.4,1.01335]
[1742537162232,0.00760206,1974.6,1974.5,1.01329]
[1742537162432,0.00760206,1974.6,1974.5,2.34379]
[1742537162731,0.00760206,1974.6,1974.5,43.14379]
[1742537163235,1.02084206,1974.6,1974.5,43.14379]
[1742537163433,1.02084206,1974.6,1974.5,42.1305]
[1742537164430,1.01335,1974.4,1974.3,0.00760206]
[1742537164627,1.01335,1974.4,1974.3,1.33810206]
[1742537164933,4.25735,1974.4,1974.3,42.13810206]
[1742537165133,6.28925,1974.4,1974.3,42.13810206]
[1742537168334,6.28925,1974.4,1974.3,1.33810206]
[1742537168734,6.28925,1974.4,1974.3,42.13810206]
[1742537169640,6.28925,1974.4,1974.3,0.00760206]
[1742537171631,3.04525,1974.4,1974.3,0.00760206]
[1742537171837,6.29025,1974.4,1974.3,0.00760206]
[1742537172035,5.2769,1974.4,1974.3,5.62330206]
[1742537172242,6.29325,1974.4,1974.3,4.60990206]
[1742537172636,6.29325,1974.4,1974.3,45.40990206]
[1742537173843,4.92825,1974.4,1974.3,45.40990206]
[1742537174034,4.92825,1974.4,1974.3,46.08440206]
[1742537175140,4.92825,1974.4,1974.3,42.20210206]
[1742537176648,4.92825,1974.4,1974.3,0.00760206]
[1742537178839,4.92825,1974.4,1974.3,1.42870206]
[1742537180140,1.4127,1974.5,1974.4,1.01335]
[1742537180342,3.246,1974.5,1974.4,1.01335]
[1742537180643,3.246,1974.5,1974.4,3.08315]
[1742537180942,4.25929,1974.5,1974.4,3.08315]
[1742537181145,4.25929,1974.5,1974.4,2.0698]
[1742537181338,4.25929,1974.5,1974.4,3.08315]
[1742537183352,1.30590206,1974.6,1974.5,1.01329]
[1742537183647,5.56414206,1974.6,1974.5,2.36259]
[1742537183842,1.30590206,1974.6,1974.5,2.36259]
[1742537184047,3.25260206,1974.6,1974.5,2.36259]
[1742537184245,4.26584206,1974.6,1974.5,2.36259]
[1742537184445,4.26584206,1974.6,1974.5,1.3493]
[1742537184946,4.26584206,1974.6,1974.5,2.36259]
[1742537185146,4.26584206,1974.6,1974.5,1.3493]
[1742537186946,8.99352206,1974.6,1974.3,0.00760206]
[1742537187144,1.01335,1974.4,1974.3,0.00760206]
[1742537187343,4.26135,1974.4,1974.3,0.00760206]
[1742537187545,5.56375,1974.4,1974.3,0.00760206]
[1742537191550,5.56375,1974.4,1974.1,3.2078]
[1742537191551,1.01345,1974.2,1974.1,3.2078]
[1742537191748,4.25845,1974.2,1974.1,3.2078]
[1742537193141,1.0135,1974.1,1974.0,0.00760206]
[1742537193350,3.1194,1974.1,1974.0,0.00760206]
[1742537194655,3.7911,1974.1,1974.0,0.00760206]
[1742537199959,2.7776,1974.1,1974.0,0.00760206]
[1742537200156,3.108,1974.1,1974.0,0.00760206]
[1742537201854,6.355,1974.1,1974.0,0.00760206]
[1742537202054,6.355,1974.1,1974.0,0.67550206]
[1742537202255,6.355,1974.1,1974.0,2.03520206]
[1742537202548,5.3415,1974.1,1974.0,3.04875206]
[1742537202751,2.0945,1974.1,1974.0,3.04875206]
[1742537202947,3.9177,1974.1,1974.0,3.04875206]
[1742537204263,4.9312,1974.1,1974.0,3.04875206]
[1742537205060,1.6852,1974.1,1974.0,3.04875206]
[1742537205462,1.6852,1974.1,1974.0,2.03520206]
[1742537205660,3.0361,1974.1,1974.0,1.36730206]
[1742537206366,3.0361,1974.1,1974.0,2.38085206]
[1742537206558,2.0226,1974.1,1974.0,2.38085206]
[1742537206962,3.0361,1974.1,1974.0,1.36730206]
[1742537208259,3.0361,1974.1,1974.0,2.38085206]
[1742537208854,3.2078,1974.4,1974.0,1.36730206]
[1742537209058,3.245,1974.3,1974.1,5.25]
[1742537209360,3.245,1974.3,1974.2,2.39005]
[1742537210670,6.23846,1974.4,1974.3,1.0134]
[1742537210860,5.2251,1974.4,1974.3,2.3848]
[1742537212169,6.23845,1974.4,1974.3,2.3848]
[1742537212665,1.9801,1974.4,1974.3,2.3848]
[1742537213468,4.25832,1974.5,1974.4,1.01335]
[1742537213669,5.54242,1974.5,1974.4,3.05985]
[1742537214463,5.54242,1974.5,1974.4,2.0465]
[1742537214767,5.54242,1974.5,1974.4,3.05985]
[1742537216268,4.5291,1974.5,1974.4,3.05985]
[1742537216768,5.54239,1974.5,1974.4,3.05985]
[1742537216967,4.5291,1974.5,1974.4,3.05985]
[1742537217764,3.245,1974.5,1974.4,3.05985]
[1742537218667,2.01520206,1974.6,1974.5,1.01329]
[1742537218868,2.01520206,1974.6,1974.5,5.53659]
[1742537221578,3.02844206,1974.6,1974.5,5.53659]
[1742537221877,0.00760206,1974.6,1974.5,5.53659]
[1742537222175,0.00760206,1974.6,1974.5,5.96569]
[1742537222378,0.6573,1974.9,1974.8,1.01314]
[1742537222568,2.0257,1974.9,1974.8,1.01314]
[1742537222975,0.6573,1974.9,1974.8,2.31994]
[1742537223171,3.245,1975.0,1974.9,1.01309]
[1742537223373,5.2124,1975.1,1975.0,1.01304]
[1742537223675,1.01304,1975.0,1974.9,43.19035]
[1742537223871,2.32314,1975.0,1974.9,41.81305]
[1742537224078,2.32314,1975.0,1974.9,40.8]
[1742537224468,1.3101,1975.0,1974.9,41.81309]
[1742537224673,2.32314,1975.0,1974.9,41.81309]
[1742537224877,1.3101,1975.0,1974.9,41.81309]
[1742537226974,1.3101,1975.0,1974.9,45.02089]
[1742537227174,1.98590206,1975.1,1975.0,1.01304]
[1742537227374,0.66490206,1975.1,1975.0,1.01304]
[1742537227977,0.00760206,1975.1,1975.0,1.01304]
[1742537229182,1.02059206,1975.1,1975.0,1.01304]
[1742537229381,2.30819206,1975.1,1975.0,1.01304]
[1742537232792,1.29520206,1975.1,1975.0,1.01304]
[1742537238506,2.99308,1975.5,1975.4,1.01283]
[1742537238794,1.68418,1975.5,1975.4,1.01283]
[1742537239698,1.01283,1975.4,1975.3,1.02044206]
[1742537240493,1.68422,1975.5,1975.4,1.01283]
[1742537240701,0.6714,1975.5,1975.4,4.22063]
[1742537243194,1.68418,1975.5,1975.4,4.22063]
[1742537243393,0.6714,1975.5,1975.4,4.22063]
[1742537243791,1.68418,1975.5,1975.4,4.22063]
[1742537244404,1.68418,1975.5,1975.4,3.2078]
[1742537244601,1.68418,1975.5,1975.4,4.22063]
[1742537244797,1.68418,1975.5,1975.4,2.1401]
[1742537245109,1.01283,1975.4,1975.3,0.00760206]
[1742537245308,4.25583,1975.4,1975.3,0.00760206]
[1742537245803,3.243,1975.4,1975.3,1.02048206]
[1742537246008,4.25583,1975.4,1975.3,2.42368206]
[1742537246206,4.25583,1975.4,1975.3,0.00760206]
[1742537247108,4.25583,1975.4,1975.3,1.41080206]
[1742537247306,4.25583,1975.4,1975.3,0.00760206]
[1742537248300,4.25583,1975.4,1975.3,1.02048206]
[1742537248699,4.25583,1975.4,1975.3,0.00760206]
[1742537249099,4.25583,1975.4,1975.3,1.02048206]
[1742537249300,4.25583,1975.4,1975.3,2.37188206]
[1742537249609,3.243,1975.4,1975.3,2.37188206]
[1742537250006,1.01283,1975.4,1975.3,2.37188206]
[1742537253807,2.38093,1975.4,1975.3,2.37188206]
[1742537254610,1.3681,1975.4,1975.3,2.37188206]
[1742537254804,2.38093,1975.4,1975.3,0.00760206]
[1742537255003,5.62393,1975.4,1975.3,0.00760206]
[1742537255209,1.01299,1975.1,1975.0,1.3375]
[1742537255415,1.01304,1975.0,1974.9,43.15056]
[1742537255810,1.01304,1975.0,1974.9,40.8]
[1742537256012,3.0838,1975.1,1974.9,44.0078]
[1742537256313,2.38114,1975.0,1974.9,44.0078]
[1742537256518,3.08044,1975.0,1974.9,45.3453]
[1742537256728,2.0674,1975.0,1974.9,46.35839]
[1742537258120,3.08044,1975.0,1974.9,45.3453]
[1742537259515,3.08044,1975.0,1974.9,44.0078]
[1742537259715,6.32344,1975.0,1974.9,3.2078]
[1742537263118,6.32344,1975.0,1974.8,0.00760206]
[1742537263119,1.01309,1974.9,1974.8,0.00760206]
[1742537263420,2.31439,1974.9,1974.8,0.00760206]
[1742537263818,3.2078,1974.8,1973.3,1.8489903]
[1742537264026,3.2078,1974.0,1973.6,1.3989]
[1742537264219,6.0602,1973.9,1973.5,3.2078]
[1742537264424,6.0602,1973.9,1973.6,1.3989]
[1742537264622,2.31497,1973.8,1973.6,1.3989]
[1742537264814,1.3013,1973.7,1973.6,1.3989]
[1742537265220,2.31501,1973.7,1973.6,1.3989]
[1742537265524,2.31501,1973.7,1973.5,0.00760206]
[1742537265525,1.01376,1973.6,1973.5,0.00760206]
[1742537265723,2.38326,1973.6,1973.5,0.00760206]
[1742537265926,5.88126,1973.6,1973.5,0.00760206]
[1742537266129,9.08906,1973.6,1973.5,0.00760206]
[1742537266425,9.08906,1973.6,1972.8,3.2078]
[1742537266426,1.01414,1972.9,1972.8,3.2078]
[1742537266625,1.01422,1972.7,1972.6,4.5159]
[1742537268022,1.37710206,1972.8,1972.6,5.53017]
[1742537268226,1.02177206,1972.8,1972.7,1.3081]
[1742537270628,0.00760206,1972.8,1972.5,0.00760206]
[1742537270835,1.01427,1972.6,1972.5,0.00760206]
[1742537271528,3.8296,1972.6,1972.2,40.8]
[1742537271733,1.01442,1972.3,1972.2,40.8]
[1742537272333,2.39362,1972.3,1972.2,40.8]
[1742537273730,2.39362,1972.3,1972.1,0.00760206]
[1742537273731,1.01448,1972.2,1972.1,0.00760206]
[1742537273936,1.01448,1972.2,1971.5,1.71331]
[1742537273937,1.3792,1972.2,1971.6,1.3859]
[1742537274140,3.531,1972.1,1971.6,4.5937]
[1742537274429,3.53,1972.2,1972.0,3.2078]
[1742537274629,3.53,1972.2,1972.1,1.3859]
[1742537275334,4.8627,1972.2,1972.1,42.1859]
[1742537275531,3.528,1972.5,1972.1,43.20043]
[1742537275832,4.8607,1972.5,1972.2,4.5817]
[1742537276046,1.3327,1972.5,1972.2,4.5817]
[1742537276440,2.34703,1972.5,1972.2,4.5817]
[1742537277540,1.3327,1972.5,1972.2,4.5817]
[1742537277747,1.3327,1972.5,1972.2,1.3739]
[1742537277947,1.0144,1972.4,1972.2,1.3739]
[1742537278444,2.34705,1972.5,1972.2,1.3739]
[1742537278644,1.3327,1972.5,1972.3,3.2078]
[1742537278946,1.01432,1972.5,1972.4,1.3527]
[1742537279556,1.01432,1972.5,1972.4,40.8]
[1742537280754,1.3307,1972.6,1972.4,41.81435]
[1742537280944,1.3307,1972.6,1972.5,1.3527]
[1742537281650,4.22204,1972.7,1972.5,1.3527]
[1742537282147,4.22204,1972.7,1972.5,2.36701]
[1742537282347,4.22204,1972.7,1972.5,2.36702]
[1742537282541,4.86370206,1972.8,1972.5,4.5605]
[1742537282744,1.01427,1972.6,1972.5,1.3527]
[1742537283451,1.01432,1972.5,1972.4,40.8]
[1742537283642,1.01432,1972.5,1972.4,1.2987]
[1742537283643,2.35642,1972.5,1972.4,1.2987]
[1742537283952,1.01432,1972.5,1972.4,1.2987]
[1742537284246,1.01432,1972.5,1972.4,42.0987]
[1742537284640,1.01432,1972.5,1972.4,1.2987]
[1742537285145,1.01442,1972.3,1972.2,40.8]
[1742537285444,1.01442,1972.3,1972.2,42.1739]
[1742537285954,1.01453,1972.1,1972.0,0.00506802]
[1742537286947,2.37583,1972.1,1972.0,1.37896802]
[1742537287146,2.37583,1972.1,1972.0,0.00506802]
[1742537287445,4.8683,1972.1,1972.0,0.00506802]